[Event "Early-Titled-Tuesday-Blitz-September-12-2023"]
[Site "Chess.com"]
[Date "2023.09.12"]
[Round "3"]
[White "Biregina"]
[Black "GianmarcoVaR"]
[Result "0-1"]
[WhiteElo "2435"]
[BlackElo "2613"]
[TimeControl "180+1"]
[EndTime "8:27:59 PDT"]
[Termination "GianmarcoVaR won on time"]

1. b3 {[%clk 0:03:00.9]} 1... d5 {[%clk 0:02:54.9]} 2. Bb2 {[%clk 0:03:00.4]}
2... Bf5 {[%clk 0:02:53.9]} 3. d3 {[%clk 0:02:57.8]} 3... Nf6 {[%clk 0:02:49.3]}
4. Nf3 {[%clk 0:02:58.2]} 4... Nbd7 {[%clk 0:02:42.1]} 5. Nbd2 {[%clk
0:02:56.5]} 5... e6 {[%clk 0:02:42]} 6. g3 {[%clk 0:02:56.4]} 6... a5 {[%clk
0:02:40.7]} 7. a3 {[%clk 0:02:47.2]} 7... a4 {[%clk 0:02:34.6]} 8. b4 {[%clk
0:02:46.4]} 8... c5 {[%clk 0:02:35]} 9. bxc5 {[%clk 0:02:36.1]} 9... Bxc5 {[%clk
0:02:35.3]} 10. Bg2 {[%clk 0:02:33.4]} 10... Qb6 {[%clk 0:02:16.6]} 11. Rb1
{[%clk 0:01:49.3]} 11... Bxf2+ {[%clk 0:01:29.6]} 12. Kf1 {[%clk 0:01:49.6]}
12... Ng4 {[%clk 0:01:30.3]} 13. Bd4 {[%clk 0:01:02.7]} 13... Bxd4 {[%clk
0:01:09.6]} 14. Rxb6 {[%clk 0:01:01.7]} 14... Ne3+ {[%clk 0:01:05.4]} 15. Kg1
{[%clk 0:00:44.8]} 15... Nxd1+ {[%clk 0:00:59.6]} 16. Nxd4 {[%clk 0:00:45.1]}
16... Nxb6 {[%clk 0:01:00]} 17. e4 {[%clk 0:00:37.2]} 17... Bg6 {[%clk
0:00:55.6]} 18. Nb5 {[%clk 0:00:30.4]} 18... Kd7 {[%clk 0:00:49.3]} 19. exd5
{[%clk 0:00:28.7]} 19... exd5 {[%clk 0:00:47]} 20. Bh3+ {[%clk 0:00:26.2]} 20...
Kc6 {[%clk 0:00:47.2]} 21. Nd4+ {[%clk 0:00:24.7]} 21... Kc5 {[%clk 0:00:47.1]}
22. N2f3 {[%clk 0:00:24.3]} 22... Rhe8 {[%clk 0:00:43.4]} 23. Kg2 {[%clk
0:00:23.7]} 23... Nc3 {[%clk 0:00:34.9]} 24. Kf2 {[%clk 0:00:18.2]} 24... Re7
{[%clk 0:00:28.7]} 25. Bg4 {[%clk 0:00:08.4]} 25... h5 {[%clk 0:00:24.6]} 26.
Bh3 {[%clk 0:00:08.4]} 26... Rae8 {[%clk 0:00:23.6]} 27. Rf1 {[%clk 0:00:05.9]}
27... Nb5 {[%clk 0:00:14.5]} 28. Nxb5 {[%clk 0:00:04.8]} 28... Kxb5 {[%clk
0:00:15]} 29. Rb1+ {[%clk 0:00:04]} 29... Kc5 {[%clk 0:00:14.4]} 30. d4+ {[%clk
0:00:04]} 30... Kc6 {[%clk 0:00:15]} 31. Ne5+ {[%clk 0:00:04.4]} 31... Rxe5
{[%clk 0:00:15.7]} 32. dxe5 {[%clk 0:00:04.9]} 32... Rxe5 {[%clk 0:00:16.3]} 33.
Bg2 {[%clk 0:00:03.5]} 33... Kc5 {[%clk 0:00:15.4]} 34. Bf1 {[%clk 0:00:02.5]}
34... Nc4 {[%clk 0:00:14]} 35. Rb4 {[%clk 0:00:03.1]} 35... b5 {[%clk
0:00:13.8]} 36. c3 {[%clk 0:00:02.1]} 36... Bc2 {[%clk 0:00:12.3]} 0-1

[Event "Early-Titled-Tuesday-Blitz-September-12-2023"]
[Site "Chess.com"]
[Date "2023.09.12"]
[Round "3"]
[White "Andrei_Belozerov"]
[Black "Srisshhhtea"]
[Result "1-0"]
[WhiteElo "2594"]
[BlackElo "2421"]
[TimeControl "180+1"]
[EndTime "8:27:59 PDT"]
[Termination "Andrei_Belozerov won by resignation"]

1. d4 {[%clk 0:02:57.9]} 1... Nf6 {[%clk 0:02:59.1]} 2. c4 {[%clk 0:02:57.9]}
2... g6 {[%clk 0:02:56.8]} 3. g3 {[%clk 0:02:58]} 3... Bg7 {[%clk 0:02:48.7]} 4.
Bg2 {[%clk 0:02:57.8]} 4... O-O {[%clk 0:02:49.5]} 5. Nc3 {[%clk 0:02:57.7]}
5... d6 {[%clk 0:02:50.1]} 6. Nf3 {[%clk 0:02:55.2]} 6... Nbd7 {[%clk
0:02:50.5]} 7. O-O {[%clk 0:02:54.7]} 7... e5 {[%clk 0:02:51.1]} 8. e4 {[%clk
0:02:54.6]} 8... exd4 {[%clk 0:02:49.3]} 9. Nxd4 {[%clk 0:02:54.2]} 9... Re8
{[%clk 0:02:49.4]} 10. h3 {[%clk 0:02:50.8]} 10... a6 {[%clk 0:02:49.1]} 11. Re1
{[%clk 0:02:44.6]} 11... Ne5 {[%clk 0:02:45.8]} 12. b3 {[%clk 0:02:37.6]} 12...
Bd7 {[%clk 0:02:35.1]} 13. Bf4 {[%clk 0:02:30.2]} 13... c5 {[%clk 0:02:34.2]}
14. Nde2 {[%clk 0:02:25]} 14... Bc6 {[%clk 0:02:29.7]} 15. Qc2 {[%clk
0:02:06.6]} 15... b5 {[%clk 0:02:27.8]} 16. Rad1 {[%clk 0:01:46.9]} 16... b4
{[%clk 0:02:25.9]} 17. Nd5 {[%clk 0:01:36.9]} 17... Nxd5 {[%clk 0:02:21.4]} 18.
cxd5 {[%clk 0:01:33.2]} 18... Bb5 {[%clk 0:02:20]} 19. Be3 {[%clk 0:01:21.4]}
19... a5 {[%clk 0:02:10.7]} 20. f4 {[%clk 0:01:19.1]} 20... Nd7 {[%clk
0:02:11.3]} 21. e5 {[%clk 0:01:11.7]} 21... dxe5 {[%clk 0:02:08.7]} 22. f5
{[%clk 0:01:11]} 22... a4 {[%clk 0:02:04.8]} 23. d6 {[%clk 0:01:09.6]} 23...
axb3 {[%clk 0:02:03]} 24. axb3 {[%clk 0:01:07.5]} 24... Ra3 {[%clk 0:02:00.4]}
25. g4 {[%clk 0:01:05.7]} 25... Qc8 {[%clk 0:01:50.7]} 26. Ng3 {[%clk
0:01:03.8]} 26... Bc6 {[%clk 0:01:44.9]} 27. Ne4 {[%clk 0:01:00.2]} 27... Qa6
{[%clk 0:01:35.7]} 28. Nxc5 {[%clk 0:00:54.8]} 28... Nxc5 {[%clk 0:01:33.3]} 29.
Qxc5 {[%clk 0:00:53.5]} 29... Bxg2 {[%clk 0:01:32.9]} 30. Kxg2 {[%clk
0:00:50.9]} 30... Ra2+ {[%clk 0:01:33.5]} 31. Rd2 {[%clk 0:00:47.3]} 31... Ra8
{[%clk 0:01:27.8]} 32. Rxa2 {[%clk 0:00:40.7]} 32... Qxa2+ {[%clk 0:01:27.4]}
33. Kg1 {[%clk 0:00:40]} 33... Bf6 {[%clk 0:01:00.6]} 34. d7 {[%clk 0:00:37.3]}
34... Rd8 {[%clk 0:00:47.9]} 35. g5 {[%clk 0:00:32.7]} 35... Bg7 {[%clk
0:00:20.6]} 36. Qc7 {[%clk 0:00:26.8]} 36... Qa8 {[%clk 0:00:18.6]} 37. Bb6
{[%clk 0:00:23.9]} 37... Bf8 {[%clk 0:00:11.2]} 38. Qxd8 {[%clk 0:00:22.8]}
38... Qf3 {[%clk 0:00:11.7]} 39. Qxf8+ {[%clk 0:00:22.9]} 39... Kxf8 {[%clk
0:00:12]} 40. d8=Q+ {[%clk 0:00:23]} 40... Kg7 {[%clk 0:00:12.2]} 41. Qf6+
{[%clk 0:00:22.7]} 1-0

[Event "Early-Titled-Tuesday-Blitz-September-12-2023"]
[Site "Chess.com"]
[Date "2023.09.12"]
[Round "3"]
[White "AndreiITrifan"]
[Black "Tssunami"]
[Result "1-0"]
[WhiteElo "2625"]
[BlackElo "2445"]
[TimeControl "180+1"]
[EndTime "8:28:00 PDT"]
[Termination "AndreiITrifan won by resignation"]

1. Nf3 {[%clk 0:02:59.3]} 1... d5 {[%clk 0:02:58.2]} 2. e3 {[%clk 0:02:58.9]}
2... Nc6 {[%clk 0:02:56.6]} 3. d4 {[%clk 0:02:53.7]} 3... Bg4 {[%clk 0:02:54.4]}
4. c4 {[%clk 0:02:52.8]} 4... Bxf3 {[%clk 0:02:51.9]} 5. Qxf3 {[%clk 0:02:50.4]}
5... e6 {[%clk 0:02:49.5]} 6. Nc3 {[%clk 0:02:50]} 6... Nf6 {[%clk 0:02:48.2]}
7. Bd3 {[%clk 0:02:31.4]} 7... dxc4 {[%clk 0:02:44.1]} 8. Bxc4 {[%clk
0:02:30.8]} 8... Bd6 {[%clk 0:02:44.3]} 9. Bb5 {[%clk 0:02:21.2]} 9... Qd7
{[%clk 0:02:38.7]} 10. e4 {[%clk 0:02:21.2]} 10... e5 {[%clk 0:02:27.8]} 11. d5
{[%clk 0:02:19.9]} 11... O-O {[%clk 0:02:22.3]} 12. dxc6 {[%clk 0:02:05.5]}
12... bxc6 {[%clk 0:02:23.2]} 13. Bc4 {[%clk 0:02:04.8]} 13... Bc5 {[%clk
0:02:07.6]} 14. O-O {[%clk 0:01:58.2]} 14... Bd4 {[%clk 0:02:05.1]} 15. Bb3
{[%clk 0:01:46.5]} 15... Rab8 {[%clk 0:02:03.8]} 16. Bg5 {[%clk 0:01:40.9]}
16... Ne8 {[%clk 0:02:01]} 17. Rad1 {[%clk 0:01:37.5]} 17... c5 {[%clk
0:02:00.8]} 18. Nd5 {[%clk 0:01:33.6]} 18... c6 {[%clk 0:02:00.6]} 19. Ne3
{[%clk 0:01:26]} 19... Kh8 {[%clk 0:01:53.7]} 20. Qf5 {[%clk 0:01:01.4]} 20...
Qc7 {[%clk 0:01:49]} 21. Nc4 {[%clk 0:00:58.6]} 21... f6 {[%clk 0:01:42.1]} 22.
Bd2 {[%clk 0:00:57.6]} 22... Qe7 {[%clk 0:01:41.1]} 23. Bc3 {[%clk 0:00:51.4]}
23... g6 {[%clk 0:01:39.4]} 24. Qf3 {[%clk 0:00:51.3]} 24... Ng7 {[%clk
0:01:39.7]} 25. Ne3 {[%clk 0:00:48.7]} 25... Nh5 {[%clk 0:01:35.9]} 26. g3
{[%clk 0:00:44.7]} 26... Ng7 {[%clk 0:01:35.9]} 27. Rd3 {[%clk 0:00:42.4]} 27...
a5 {[%clk 0:01:30.5]} 28. Nc4 {[%clk 0:00:41]} 28... Ra8 {[%clk 0:01:26]} 29.
Bxa5 {[%clk 0:00:39.3]} 29... Ne6 {[%clk 0:01:24]} 30. Bc3 {[%clk 0:00:35.6]}
30... Ng5 {[%clk 0:01:24.3]} 31. Qe2 {[%clk 0:00:34.8]} 31... Rad8 {[%clk
0:01:20.7]} 32. Kg2 {[%clk 0:00:32.9]} 32... Qd7 {[%clk 0:01:20.1]} 33. g4
{[%clk 0:00:25.2]} 33... f5 {[%clk 0:01:14.1]} 34. exf5 {[%clk 0:00:22]} 34...
gxf5 {[%clk 0:01:14.2]} 35. Nxe5 {[%clk 0:00:22.1]} 35... Qg7 {[%clk 0:01:14.6]}
36. f4 {[%clk 0:00:20.6]} 36... Ne4 {[%clk 0:01:05.1]} 37. Bxd4 {[%clk
0:00:19.9]} 37... cxd4 {[%clk 0:01:02.9]} 38. Kh1 {[%clk 0:00:20.2]} 38... c5
{[%clk 0:01:00.6]} 39. gxf5 {[%clk 0:00:19.1]} 39... Rxf5 {[%clk 0:00:55.2]} 40.
Qxe4 {[%clk 0:00:18.5]} 40... Rdf8 {[%clk 0:00:54.4]} 41. Rg3 {[%clk 0:00:18.8]}
41... Qc7 {[%clk 0:00:49.7]} 42. Qxf5 {[%clk 0:00:15.5]} 42... Qb7+ {[%clk
0:00:46.6]} 43. Kg1 {[%clk 0:00:15.2]} 43... Qa8 {[%clk 0:00:35.3]} 44. Qxf8+
{[%clk 0:00:14.7]} 44... Qxf8 {[%clk 0:00:35.5]} 45. Nf7+ {[%clk 0:00:15.4]} 1-0

[Event "Early-Titled-Tuesday-Blitz-September-12-2023"]
[Site "Chess.com"]
[Date "2023.09.12"]
[Round "3"]
[White "ural58"]
[Black "ploxoi"]
[Result "1-0"]
[WhiteElo "2564"]
[BlackElo "2372"]
[TimeControl "180+1"]
[EndTime "8:28:00 PDT"]
[Termination "ural58 won by resignation"]

1. e4 {[%clk 0:02:54]} 1... c5 {[%clk 0:02:59.5]} 2. Nf3 {[%clk 0:02:51.4]} 2...
e6 {[%clk 0:02:59.8]} 3. b3 {[%clk 0:02:50.2]} 3... d5 {[%clk 0:02:58.8]} 4.
Bb5+ {[%clk 0:02:38.7]} 4... Bd7 {[%clk 0:02:54.6]} 5. Qe2 {[%clk 0:02:37]} 5...
a6 {[%clk 0:02:34.8]} 6. Bxd7+ {[%clk 0:02:34.7]} 6... Qxd7 {[%clk 0:02:35.7]}
7. exd5 {[%clk 0:02:33.6]} 7... Qxd5 {[%clk 0:02:36.6]} 8. Nc3 {[%clk
0:02:33.5]} 8... Qd8 {[%clk 0:02:31.8]} 9. Bb2 {[%clk 0:02:33.7]} 9... Nc6
{[%clk 0:02:32]} 10. O-O-O {[%clk 0:02:34.3]} 10... Nf6 {[%clk 0:02:27.9]} 11.
Ne4 {[%clk 0:02:34.3]} 11... Be7 {[%clk 0:02:22.9]} 12. d4 {[%clk 0:02:34.3]}
12... cxd4 {[%clk 0:02:18.3]} 13. Nxd4 {[%clk 0:02:34.4]} 13... Nxd4 {[%clk
0:02:19]} 14. Bxd4 {[%clk 0:02:30.7]} 14... Qa5 {[%clk 0:02:17.2]} 15. Nxf6+
{[%clk 0:02:24.4]} 15... Bxf6 {[%clk 0:02:16.8]} 16. Bxf6 {[%clk 0:02:24.5]}
16... gxf6 {[%clk 0:02:17.7]} 17. Kb1 {[%clk 0:02:16.2]} 17... Rc8 {[%clk
0:02:16.8]} 18. Rd3 {[%clk 0:02:12.3]} 18... Qc5 {[%clk 0:02:09.6]} 19. Rhd1
{[%clk 0:02:11.2]} 19... Rg8 {[%clk 0:01:55.7]} 20. Qd2 {[%clk 0:02:05.7]} 20...
f5 {[%clk 0:01:16.7]} 21. Rd8+ {[%clk 0:01:54.2]} 21... Ke7 {[%clk 0:01:16.5]}
22. Rd7+ {[%clk 0:01:54.4]} 22... Ke8 {[%clk 0:01:10]} 23. Rxb7 {[%clk
0:01:52.2]} 23... Qc6 {[%clk 0:01:03.5]} 24. Qd7+ {[%clk 0:01:46.6]} 24... Qxd7
{[%clk 0:01:01]} 25. Rdxd7 {[%clk 0:01:47.5]} 25... Rg7 {[%clk 0:00:46.5]} 26.
g3 {[%clk 0:01:44.7]} 26... h5 {[%clk 0:00:46.3]} 27. Kb2 {[%clk 0:01:37.4]}
27... Kf8 {[%clk 0:00:46.2]} 28. Ra7 {[%clk 0:01:34.2]} 28... Kg8 {[%clk
0:00:46.1]} 29. Rxa6 {[%clk 0:01:33.2]} 29... h4 {[%clk 0:00:46.8]} 30. a4
{[%clk 0:01:31.9]} 30... hxg3 {[%clk 0:00:46.6]} 31. hxg3 {[%clk 0:01:32.1]}
31... f4 {[%clk 0:00:47.1]} 32. gxf4 {[%clk 0:01:31.7]} 32... Rg2 {[%clk
0:00:44.2]} 33. Rd2 {[%clk 0:01:31.1]} 33... Rg4 {[%clk 0:00:43.8]} 34. f5
{[%clk 0:01:27.4]} 34... e5 {[%clk 0:00:35.5]} 35. Rb6 {[%clk 0:01:17]} 35...
Rf4 {[%clk 0:00:34.1]} 36. f6 {[%clk 0:01:15.8]} 36... Kh7 {[%clk 0:00:29.4]}
37. Re2 {[%clk 0:01:09.7]} 37... Re8 {[%clk 0:00:28]} 38. a5 {[%clk 0:01:07.4]}
38... Kg6 {[%clk 0:00:27.2]} 39. a6 {[%clk 0:01:07.5]} 39... Rxf6 {[%clk
0:00:23.7]} 40. Rxf6+ {[%clk 0:01:07.6]} 40... Kxf6 {[%clk 0:00:24.6]} 41. b4
{[%clk 0:01:08.2]} 41... Rb8 {[%clk 0:00:23.7]} 42. Kb3 {[%clk 0:00:38.8]} 42...
Rb6 {[%clk 0:00:23.5]} 43. c4 {[%clk 0:00:38.6]} 43... Rxa6 {[%clk 0:00:23.4]}
44. b5 {[%clk 0:00:39.3]} 44... Ra1 {[%clk 0:00:22.3]} 45. b6 {[%clk 0:00:38.5]}
45... Ra6 {[%clk 0:00:18.4]} 46. c5 {[%clk 0:00:38]} 46... Ra8 {[%clk
0:00:17.4]} 47. b7 {[%clk 0:00:37.3]} 47... Rb8 {[%clk 0:00:18.1]} 48. c6 {[%clk
0:00:37.9]} 48... Ke6 {[%clk 0:00:18.8]} 49. Rd2 {[%clk 0:00:37.5]} 49... f5
{[%clk 0:00:18.2]} 50. Kc4 {[%clk 0:00:37.6]} 50... e4 {[%clk 0:00:17.4]} 51. c7
{[%clk 0:00:37.9]} 1-0

[Event "Early-Titled-Tuesday-Blitz-September-12-2023"]
[Site "Chess.com"]
[Date "2023.09.12"]
[Round "3"]
[White "NowInChess"]
[Black "LeoLV10"]
[Result "0-1"]
[WhiteElo "2267"]
[BlackElo "2495"]
[TimeControl "180+1"]
[EndTime "8:28:00 PDT"]
[Termination "LeoLV10 won by checkmate"]

1. e4 {[%clk 0:03:00.9]} 1... c6 {[%clk 0:02:53.7]} 2. d4 {[%clk 0:03:00.3]}
2... d5 {[%clk 0:02:54.6]} 3. exd5 {[%clk 0:03:00.8]} 3... cxd5 {[%clk
0:02:55.5]} 4. c4 {[%clk 0:03:01.3]} 4... Nf6 {[%clk 0:02:55.5]} 5. Nc3 {[%clk
0:03:01.6]} 5... Nc6 {[%clk 0:02:55.4]} 6. Bf4 {[%clk 0:03:00.9]} 6... Be6
{[%clk 0:02:45.3]} 7. c5 {[%clk 0:02:59.9]} 7... g6 {[%clk 0:02:44.6]} 8. Nf3
{[%clk 0:02:59.3]} 8... Bg7 {[%clk 0:02:45]} 9. Bb5 {[%clk 0:02:58.5]} 9... O-O
{[%clk 0:02:45.7]} 10. Bxc6 {[%clk 0:02:56.7]} 10... bxc6 {[%clk 0:02:46.6]} 11.
Qa4 {[%clk 0:02:56.5]} 11... Ne4 {[%clk 0:02:38.9]} 12. Qxc6 {[%clk 0:02:34.6]}
12... Nxc3 {[%clk 0:02:14.6]} 13. bxc3 {[%clk 0:02:31.9]} 13... Qa5 {[%clk
0:02:15.3]} 14. O-O {[%clk 0:02:07]} 14... Qxc3 {[%clk 0:02:13.1]} 15. Qa4
{[%clk 0:01:59.3]} 15... Bg4 {[%clk 0:02:06]} 16. Ne5 {[%clk 0:01:56.2]} 16...
Be2 {[%clk 0:02:05.3]} 17. Rfc1 {[%clk 0:01:42.3]} 17... Qb2 {[%clk 0:01:55]}
18. Rab1 {[%clk 0:01:34.8]} 18... Bxe5 {[%clk 0:01:38]} 19. Rxb2 {[%clk
0:01:08.2]} 19... Bxf4 {[%clk 0:01:37.9]} 20. Re1 {[%clk 0:00:52.4]} 20... Bc4
{[%clk 0:01:33.5]} 21. Rxe7 {[%clk 0:00:46.7]} 21... Bg5 {[%clk 0:01:33.8]} 22.
Rxa7 {[%clk 0:00:41.9]} 22... Rae8 {[%clk 0:01:32.3]} 23. Rb1 {[%clk 0:00:32.2]}
23... Re2 {[%clk 0:01:25.7]} 24. Ra8 {[%clk 0:00:27.5]} 24... Bd8 {[%clk
0:01:07.3]} 25. Qd7 {[%clk 0:00:20.4]} 25... Ree8 {[%clk 0:00:56.6]} 26. g3
{[%clk 0:00:11.2]} 26... Bd3 {[%clk 0:00:30.4]} 27. Rbb8 {[%clk 0:00:09.5]}
27... Re1+ {[%clk 0:00:30.1]} 28. Kg2 {[%clk 0:00:08.7]} 28... Bf1+ {[%clk
0:00:30.5]} 29. Kf3 {[%clk 0:00:08.6]} 29... Be2+ {[%clk 0:00:29.2]} 30. Kf4
{[%clk 0:00:05.9]} 30... g5+ {[%clk 0:00:26.5]} 31. Kf5 {[%clk 0:00:04.3]} 31...
Bd3+ {[%clk 0:00:15.1]} 32. Kg4 {[%clk 0:00:04.4]} 32... Be2+ {[%clk 0:00:12.6]}
33. f3 {[%clk 0:00:04.4]} 33... f5+ {[%clk 0:00:12.9]} 34. Kh5 {[%clk
0:00:03.4]} 34... Bxf3+ {[%clk 0:00:12.6]} 35. Kh6 {[%clk 0:00:03.4]} 35... Rf6+
{[%clk 0:00:12.7]} 36. Kxg5 {[%clk 0:00:02.6]} 36... Rg6+ {[%clk 0:00:13]} 37.
Kxf5 {[%clk 0:00:01.1]} 37... Bg4+ {[%clk 0:00:12.8]} 38. Kf4 {[%clk 0:00:01.2]}
38... Re4# {[%clk 0:00:12.2]} 0-1

[Event "Early-Titled-Tuesday-Blitz-September-12-2023"]
[Site "Chess.com"]
[Date "2023.09.12"]
[Round "3"]
[White "BatboldNyamsuren0919"]
[Black "Aygehovit1992"]
[Result "0-1"]
[WhiteElo "2482"]
[BlackElo "2721"]
[TimeControl "180+1"]
[EndTime "8:28:03 PDT"]
[Termination "Aygehovit1992 won by resignation"]

1. d4 {[%clk 0:03:00.9]} 1... Nf6 {[%clk 0:02:55.6]} 2. c4 {[%clk 0:03:00.7]}
2... e6 {[%clk 0:02:56.2]} 3. g3 {[%clk 0:02:55.5]} 3... Bb4+ {[%clk 0:02:56]}
4. Nd2 {[%clk 0:02:54.4]} 4... O-O {[%clk 0:02:54.9]} 5. Bg2 {[%clk 0:02:54]}
5... d5 {[%clk 0:02:52]} 6. Nf3 {[%clk 0:02:52.2]} 6... Nbd7 {[%clk 0:02:46.7]}
7. O-O {[%clk 0:02:52]} 7... c6 {[%clk 0:02:38.8]} 8. Qc2 {[%clk 0:02:48.5]}
8... a5 {[%clk 0:02:30.9]} 9. e4 {[%clk 0:02:42.9]} 9... b6 {[%clk 0:02:25.1]}
10. e5 {[%clk 0:02:40.7]} 10... Ne8 {[%clk 0:02:25.3]} 11. a3 {[%clk 0:02:30.6]}
11... Be7 {[%clk 0:02:21.2]} 12. b3 {[%clk 0:02:26]} 12... Ba6 {[%clk
0:02:19.1]} 13. h4 {[%clk 0:02:21.8]} 13... Rc8 {[%clk 0:02:18]} 14. Re1 {[%clk
0:02:14.7]} 14... h6 {[%clk 0:02:01.1]} 15. Nf1 {[%clk 0:02:05.1]} 15... c5
{[%clk 0:01:54.6]} 16. cxd5 {[%clk 0:01:58.7]} 16... cxd4 {[%clk 0:01:54.1]} 17.
Qd2 {[%clk 0:01:49.1]} 17... Nc5 {[%clk 0:01:53.9]} 18. Nxd4 {[%clk 0:01:43]}
18... exd5 {[%clk 0:01:30.2]} 19. Ne3 {[%clk 0:01:33.8]} 19... Nd3 {[%clk
0:01:28.3]} 20. Rd1 {[%clk 0:01:12.8]} 20... Nc7 {[%clk 0:01:14.8]} 21. Bb2
{[%clk 0:00:39]} 21... Nxb2 {[%clk 0:01:14.4]} 22. Qxb2 {[%clk 0:00:38.4]} 22...
Bb7 {[%clk 0:01:00.8]} 23. Rac1 {[%clk 0:00:33.2]} 23... Bc5 {[%clk 0:00:54.4]}
24. Ndf5 {[%clk 0:00:25.5]} 24... Bxe3 {[%clk 0:00:45.3]} 25. Nxe3 {[%clk
0:00:25.3]} 25... Qd7 {[%clk 0:00:38.1]} 26. Qd4 {[%clk 0:00:23.4]} 26... Qe6
{[%clk 0:00:27.4]} 27. Nxd5 {[%clk 0:00:15.3]} 27... Nxd5 {[%clk 0:00:24.9]} 28.
Rxc8 {[%clk 0:00:14.9]} 28... Rxc8 {[%clk 0:00:14.7]} 29. Bxd5 {[%clk
0:00:14.8]} 29... Bxd5 {[%clk 0:00:09.8]} 30. Qxd5 {[%clk 0:00:15.7]} 30... Rc3
{[%clk 0:00:08.4]} 31. Qxe6 {[%clk 0:00:12.5]} 31... fxe6 {[%clk 0:00:09.3]} 32.
b4 {[%clk 0:00:12.9]} 32... Rxa3 {[%clk 0:00:09]} 33. b5 {[%clk 0:00:12.2]}
33... Rb3 {[%clk 0:00:09.2]} 34. Rd6 {[%clk 0:00:11.9]} 34... Rxb5 {[%clk
0:00:09.2]} 35. Rxe6 {[%clk 0:00:12.3]} 35... a4 {[%clk 0:00:09.9]} 36. f4
{[%clk 0:00:12.7]} 36... a3 {[%clk 0:00:09.4]} 37. Re8+ {[%clk 0:00:12.9]} 37...
Kf7 {[%clk 0:00:09.9]} 38. Ra8 {[%clk 0:00:13.8]} 38... Ra5 {[%clk 0:00:10.3]}
0-1

[Event "Early-Titled-Tuesday-Blitz-September-12-2023"]
[Site "Chess.com"]
[Date "2023.09.12"]
[Round "3"]
[White "Akewjon"]
[Black "Maus7"]
[Result "1-0"]
[WhiteElo "2730"]
[BlackElo "2492"]
[TimeControl "180+1"]
[EndTime "8:28:06 PDT"]
[Termination "Akewjon won on time"]

1. e4 {[%clk 0:03:00.9]} 1... e5 {[%clk 0:02:59]} 2. Nf3 {[%clk 0:03:00.8]} 2...
Nc6 {[%clk 0:02:59.4]} 3. Bc4 {[%clk 0:02:58.4]} 3... Bc5 {[%clk 0:02:58.3]} 4.
d3 {[%clk 0:02:57.7]} 4... Nf6 {[%clk 0:02:58.9]} 5. c3 {[%clk 0:02:57.3]} 5...
d6 {[%clk 0:02:59.5]} 6. a4 {[%clk 0:02:57.5]} 6... a5 {[%clk 0:02:59.8]} 7. O-O
{[%clk 0:02:56.3]} 7... O-O {[%clk 0:03:00.4]} 8. h3 {[%clk 0:02:56.3]} 8... h6
{[%clk 0:03:01.1]} 9. Re1 {[%clk 0:02:56.3]} 9... Be6 {[%clk 0:03:01.8]} 10.
Bxe6 {[%clk 0:02:50.5]} 10... fxe6 {[%clk 0:03:02.7]} 11. Be3 {[%clk 0:02:51]}
11... Bxe3 {[%clk 0:03:00.8]} 12. Rxe3 {[%clk 0:02:51.9]} 12... Qe8 {[%clk
0:02:54]} 13. Nbd2 {[%clk 0:02:49.6]} 13... b6 {[%clk 0:02:41.9]} 14. d4 {[%clk
0:02:45.1]} 14... exd4 {[%clk 0:02:41.5]} 15. cxd4 {[%clk 0:02:45.3]} 15... e5
{[%clk 0:02:40.4]} 16. Qb3+ {[%clk 0:02:38]} 16... Kh8 {[%clk 0:02:39]} 17. dxe5
{[%clk 0:02:32.5]} 17... Nxe5 {[%clk 0:02:34.3]} 18. Nd4 {[%clk 0:02:14]} 18...
Qh5 {[%clk 0:01:40.4]} 19. Ne6 {[%clk 0:02:04.1]} 19... Rfc8 {[%clk 0:01:24.2]}
20. f4 {[%clk 0:02:01.9]} 20... Ned7 {[%clk 0:01:21.2]} 21. Rg3 {[%clk
0:01:57.5]} 21... Nc5 {[%clk 0:01:13.5]} 22. Nxc5 {[%clk 0:01:43.9]} 22... Qxc5+
{[%clk 0:01:14.4]} 23. Kh1 {[%clk 0:01:38.6]} 23... Qf2 {[%clk 0:00:59.2]} 24.
Qe3 {[%clk 0:01:30.9]} 24... Qxe3 {[%clk 0:00:57]} 25. Rxe3 {[%clk 0:01:31.8]}
25... Re8 {[%clk 0:00:40.8]} 26. Rc1 {[%clk 0:01:29.7]} 26... Re7 {[%clk
0:00:40.8]} 27. g3 {[%clk 0:01:04.6]} 27... Rae8 {[%clk 0:00:39.4]} 28. Rce1
{[%clk 0:01:03.8]} 28... Nd7 {[%clk 0:00:35.9]} 29. Kg2 {[%clk 0:01:01.9]} 29...
Nc5 {[%clk 0:00:34.6]} 30. b3 {[%clk 0:01:02.2]} 30... d5 {[%clk 0:00:22.1]} 31.
e5 {[%clk 0:01:01.7]} 31... Ne6 {[%clk 0:00:20.2]} 32. f5 {[%clk 0:01:00.2]}
32... Nd4 {[%clk 0:00:18.8]} 33. g4 {[%clk 0:00:59.4]} 33... Nc2 {[%clk
0:00:18.9]} 34. Nf3 {[%clk 0:00:54.7]} 34... c6 {[%clk 0:00:13.6]} 35. e6 {[%clk
0:00:53.1]} 35... b5 {[%clk 0:00:13.3]} 36. Ne5 {[%clk 0:00:51.1]} 36... Rc7
{[%clk 0:00:10.7]} 37. h4 {[%clk 0:00:50]} 37... Kg8 {[%clk 0:00:05.8]} 38. g5
{[%clk 0:00:50.1]} 38... hxg5 {[%clk 0:00:03.2]} 39. hxg5 {[%clk 0:00:51]} 39...
bxa4 {[%clk 0:00:01.2]} 40. bxa4 {[%clk 0:00:50.4]} 40... Rb7 {[%clk 0:00:01.8]}
41. Nxc6 {[%clk 0:00:44.9]} 41... Rb2 {[%clk 0:00:02.1]} 42. Kg3 {[%clk
0:00:43.6]} 42... Nxe1 {[%clk 0:00:02.1]} 43. Rxe1 {[%clk 0:00:44]} 43... Kf8
{[%clk 0:00:01.5]} 44. f6 {[%clk 0:00:43.5]} 44... gxf6 {[%clk 0:00:01.8]} 45.
gxf6 {[%clk 0:00:44.4]} 45... Rb3+ {[%clk 0:00:02]} 46. Kf4 {[%clk 0:00:44.3]}
46... Rc3 {[%clk 0:00:02.1]} 47. Nd4 {[%clk 0:00:43.4]} 47... Rec8 {[%clk
0:00:02]} 48. Rh1 {[%clk 0:00:42.9]} 48... Kg8 {[%clk 0:00:01.6]} 49. Nf5 {[%clk
0:00:42.9]} 49... R8c4+ {[%clk 0:00:01.2]} 50. Ke5 {[%clk 0:00:43.5]} 50... Re4+
{[%clk 0:00:01]} 51. Kd6 {[%clk 0:00:44.1]} 1-0